fUSD/lending_fUSD_20241024
["ID","MTS","AMOUNT","RATE_DAILY","PERIOD"]
[340739158,1729763286549,-265.61,0.00061164,120]
[340739159,1729763286571,-1394.78789944,0.000619,101]
[340739160,1729763286592,-840.0,0.00062728,120]
[340739161,1729763286613,-250.0,0.00062866,120]
[340739162,1729763286635,-270.98,0.00062915,2]
[340739163,1729763286657,-3291.93,0.00063842,2]
[340739164,1729763286677,-150.0,0.000639,120]
[340739165,1729763286698,-250.0,0.00064073,120]
[340739166,1729763286729,-295.74,0.00065181,7]
[340739167,1729763286750,-179.99,0.00065481,60]
[340739168,1729763286771,-2000.0,0.00065601,30]
[340739169,1729763286792,-200.0,0.00065601,30]
[340739170,1729763286814,-200.0,0.00065601,30]
[340739171,1729763286836,-408.33444299,0.0006599,2]
[340739172,1729763286858,-645.702,0.00065999,120]
[340739173,1729763286882,-9310.79591966,0.00066,120]
[340739174,1729763286903,-300.0,0.00066,120]
[340739175,1729763286925,-500.0,0.00066,120]
[340739176,1729763286946,-500.0,0.00066,120]
[340739177,1729763286969,-500.0,0.00066,120]
[340739178,1729763286990,-500.0,0.00066,120]
[340739179,1729763287011,-500.0,0.00066,120]
[340739180,1729763287032,-500.0,0.00066,120]
[340739181,1729763287053,-500.0,0.00066,120]
[340739182,1729763287075,-888.4,0.00066012,2]
[340739183,1729763287095,-150.0,0.00066164,120]
[340739184,1729763287116,-5892.0,0.00066164,120]
[340739185,1729763287136,-450.0,0.00066164,120]
[340739186,1729763287156,-561.541,0.00066164,120]
[340739187,1729763287177,-813.0,0.00066164,120]
[340739188,1729763287199,-1246.0,0.00066164,120]
[340739189,1729763287223,-4533.691,0.00066164,120]
[340739190,1729763287244,-3359.0,0.00066164,120]
[340739191,1729763287264,-1911.0,0.00066164,120]
[340739192,1729763287285,-1085.0,0.00066164,120]
[340739193,1729763287307,-810.0,0.00066164,2]
[340739194,1729763287327,-200.0,0.00066257,30]
[340739195,1729763287348,-150.99,0.00066257,2]
[340739196,1729763287369,-228.71,0.00066257,2]
[340739197,1729763287388,-200.0,0.00066257,30]
[340739198,1729763287409,-152.86,0.00066441,120]
[340739199,1729763287430,-23445.9222474,0.00066774,2]
[340739200,1729763287451,-23900.0,0.00066775,2]
[340739201,1729763287478,-152.0,0.00066785,3]
[340739202,1729763287604,-200.0,0.0006692,30]
[340739203,1729763287626,-200.0,0.0006692,30]
[340739204,1729763287646,-2330.734907,0.00067,120]
[340739205,1729763287668,-293.54,0.00067273,120]
[340739206,1729763287688,-181.06,0.00067451,2]
[340739207,1729763287712,-278.86,0.00067464,120]
[340739208,1729763287733,-200.0,0.00067529,30]
[340739209,1729763287754,-200.0,0.00067589,30]
[340739210,1729763287775,-200.0,0.00067589,30]
[340739211,1729763287796,-624.74,0.00067595,2]
[340739212,1729763287818,-250.0,0.00067614,120]
[340739213,1729763287852,-150.0,0.00068,40]
[340739214,1729763287873,-200.0,0.00068265,30]
[340739215,1729763287894,-200.0,0.00068265,30]
[340739216,1729763287916,-888.4,0.00068275,2]
[340739217,1729763287937,-1006.0,0.000683,14]
[340739218,1729763287959,-500.0,0.00068493,120]
[340739219,1729763287986,-500.0,0.00068493,120]
[340739220,1729763288007,-500.0,0.00068493,120]
[340739221,1729763288030,-500.0,0.00068493,120]
[340739222,1729763288051,-150.0,0.000685,40]
[340739223,1729763288073,-1036.1459305,0.00068553,120]
[340739224,1729763288094,-686.2404,0.0006869,2]
[340739225,1729763288115,-2934.4413,0.0006879,2]
[340739226,1729763288137,-720.0,0.000688,30]
[340739227,1729763288159,-1000.0,0.000688,30]
[340739228,1729763288182,-8559.81412489,0.00068852,15]
[340739229,1729763288203,-849.1679,0.00068852,2]
[340739230,1729763288226,-603.77556368,0.00068888,120]
[340739231,1729763288247,-500.0,0.00068888,120]
[340739232,1729763288268,-584.6525516,0.00068888,120]
[340739233,1729763288289,-500.0,0.00068888,120]
[340739234,1729763288311,-699.77,0.00068888,120]
[340739235,1729763288333,-500.0,0.00068888,120]
[340739236,1729763288356,-500.0,0.00068888,120]
[340739237,1729763288379,-500.0,0.00068888,120]
[340739238,1729763288401,-500.0,0.00068952,120]
[340739239,1729763288422,-500.0,0.00068952,120]
[340739240,1729763288446,-500.0,0.00068952,120]
[340739241,1729763288471,-500.0,0.00068952,120]
[340739242,1729763288493,-500.0,0.00068952,120]
[340739243,1729763288516,-500.0,0.00068952,120]
[340739244,1729763288538,-500.0,0.00068952,120]
[340739245,1729763288562,-500.0,0.00068952,120]
[340739246,1729763288583,-500.0,0.00068952,120]
[340739247,1729763288605,-500.0,0.00068952,120]
[340739248,1729763288628,-500.0,0.00068952,120]
[340739249,1729763288654,-500.0,0.00068952,120]
[340739250,1729763288675,-500.0,0.00068952,120]
[340739251,1729763288698,-500.0,0.00068952,120]
[340739252,1729763288721,-500.0,0.00068952,120]
[340739253,1729763288744,-500.0,0.00068952,120]
[340739254,1729763288767,-536.7,0.00068952,120]
[340739255,1729763288788,-193.268108,0.00069,40]
[340739256,1729763288810,-5892.0,0.00069164,120]
[340739257,1729763288832,-560.0,0.00069164,120]
[340739258,1729763288853,-811.0,0.00069164,120]
[340739259,1729763288873,-498.8,0.00069164,120]
[340739260,1729763288894,-249.0,0.00069164,120]
[340739261,1729763288914,-1083.0,0.00069164,120]
[340739262,1729763288934,-446.649,0.00069164,2]
[340739263,1729763288955,-197.46,0.00069427,2]
[340739264,1729763288978,-300.0,0.000695,25]
[340739265,1729763288998,-600.0,0.000696,25]
[340739266,1729763289019,-167.41,0.00069621,2]
[340739267,1729763289042,-150.0,0.00069696,60]
[340739268,1729763289064,-500.0,0.00069699,120]
[340739269,1729763289086,-500.0,0.00069699,120]
[340739270,1729763289111,-500.0,0.00069699,120]
[340739271,1729763289133,-227.40731954,0.00069699,120]
[340739272,1729763289155,-500.0,0.00069699,120]
[340739273,1729763289176,-7357.14110967,0.000697,120]
[340739274,1729763289199,-900.0,0.000697,25]
[340739275,1729763289222,-150.0,0.00069702,60]
[340739276,1729763289245,-150.0,0.00069717,60]
[340739277,1729763289268,-228.81565506,0.00069722,60]
[340739278,1729763289289,-4494.7961,0.00069732,2]
[340739279,1729763289312,-150.0,0.00069755,60]
[340739280,1729763289336,-150.0,0.00069776,60]
[340739281,1729763289360,-150.0,0.0006978,60]
[340739282,1729763289382,-500.0,0.0006979,2]
[340739283,1729763289404,-2500.0,0.0006979,2]
[340739284,1729763289427,-235.03505757,0.00069798,28]
[340739285,1729763289448,-37684.0534,0.00069799,2]
[340739286,1729763289470,-1000.0,0.000698,30]
[340739287,1729763289491,-1200.0,0.000698,25]
[340739288,1729763289513,-5323.1125,0.00069842,2]
[340739289,1729763289536,-150.0,0.00069845,60]
[340739290,1729763289561,-150.0,0.00069845,60]
[340739291,1729763289584,-150.0,0.00069862,60]
[340739292,1729763289606,-150.0,0.00069864,60]
[340739293,1729763289630,-150.0,0.0006987,60]
[340739294,1729763289653,-203.339009,0.0006987,41]
[340739295,1729763289675,-308.71287795,0.0006987,2]
[340739296,1729763289698,-150.0,0.0006988,60]
[340739297,1729763289724,-150.0,0.00069885,60]
[340739298,1729763289748,-150.0,0.00069886,60]
[340739299,1729763289770,-54445.0,0.0006989,120]
[340739300,1729763289792,-549.13000034,0.00069898,120]
[340739301,1729763289813,-1389.55467094,0.00069899,120]
[340739302,1729763289834,-500.0,0.00069899,120]
[340739303,1729763289856,-235.26302741,0.00069899,120]
[340739304,1729763289877,-560.47182176,0.00069899,120]
[340739305,1729763289899,-1356.29,0.00069899,120]
[340739306,1729763289920,-175.59041115,0.00069899,90]
[340739307,1729763289943,-500.0,0.00069899,120]
[340739308,1729763289970,-1248.23,0.00069899,120]
[340739309,1729763289992,-500.0,0.00069899,120]
[340739310,1729763290013,-500.0,0.00069899,120]
[340739311,1729763290036,-530.86,0.00069899,120]
[340739312,1729763290057,-500.0,0.00069899,120]
[340739313,1729763290078,-161.31060245,0.000699,120]
[340739314,1729763290100,-150.0,0.000699,120]
[340739315,1729763290121,-171.91475361,0.000699,120]
[340739316,1729763290143,-7500.0,0.000699,120]
[340739317,1729763290163,-200.01395216,0.000699,2]
[340739318,1729763290188,-1000.0,0.000699,14]
[340739319,1729763290210,-706.52276515,0.000699,2]
[340739320,1729763290234,-159.26476528,0.000699,30]
[340739321,1729763290256,-1500.0,0.000699,25]
[340739322,1729763290280,-150.0,0.00069902,60]
[340739323,1729763290304,-150.0,0.00069905,60]
[340739324,1729763290326,-150.0,0.00069916,60]
[340739325,1729763290347,-1500.0,0.00069917,60]
[340739326,1729763290369,-150.0,0.00069933,60]
[340739327,1729763290392,-150.0,0.00069934,60]
[340739328,1729763290414,-150.0,0.00069937,60]
[340739329,1729763290439,-500.0,0.00069941,120]
[340739330,1729763290460,-277.16,0.00069941,120]
[340739331,1729763290485,-500.0,0.00069941,120]
[340739332,1729763290506,-500.0,0.00069941,120]
[340739333,1729763290529,-2709.25,0.00069941,120]
[340739334,1729763290551,-507.11869263,0.00069941,120]
[340739335,1729763290573,-623.58,0.00069941,120]
[340739336,1729763290594,-499.44875784,0.00069941,120]
[340739337,1729763290615,-500.0,0.00069941,120]
[340739338,1729763290640,-500.0,0.00069941,120]
[340739339,1729763290663,-2427.11,0.00069941,120]
[340739340,1729763290685,-500.0,0.00069941,120]
[340739341,1729763290707,-500.0,0.00069941,120]
[340739342,1729763290733,-500.0,0.00069941,120]
[340739343,1729763290755,-500.0,0.00069941,120]
[340739344,1729763290779,-500.0,0.00069941,120]
[340739345,1729763290802,-50677.240585,0.00069942,17]
[340739346,1729763290824,-357.35970627,0.00069951,120]
[340739347,1729763290846,-500.0,0.00069951,120]
[340739348,1729763290868,-500.0,0.00069951,120]
[340739349,1729763290891,-500.0,0.00069951,120]
[340739350,1729763290914,-500.0,0.00069951,120]
[340739351,1729763290935,-699.77,0.00069951,120]
[340739352,1729763290957,-500.0,0.00069951,120]
[340739353,1729763290984,-1356.29,0.00069951,120]
[340739354,1729763291006,-500.0,0.00069951,120]
[340739355,1729763291027,-500.0,0.00069951,120]
[340739356,1729763291049,-1248.23,0.00069951,120]
[340739357,1729763291070,-500.0,0.00069951,120]
[340739358,1729763291092,-153.135914,0.00069951,120]
[340739359,1729763291220,-153.094755,0.00069951,120]
[340739360,1729763291242,-151.0,0.00069951,120]
[340739361,1729763291264,-151.593791,0.00069952,120]
[340739362,1729763291285,-151.78558,0.00069952,120]
[340739363,1729763291306,-151.0,0.00069952,120]
[340739364,1729763291328,-151.0,0.00069952,120]
[340739365,1729763291349,-151.0,0.00069952,7]
[340739366,1729763291371,-247.963725,0.00069952,120]
[340739367,1729763291392,-151.0,0.00069952,120]
[340739368,1729763291414,-151.0,0.00069952,120]
[340739369,1729763291435,-162.392948,0.00069952,120]
[340739370,1729763291457,-8337.49355524,0.00069952,30]
[340739371,1729763291482,-4607.02187136,0.0006997,17]
[340739372,1729763291503,-500.0,0.00069973,15]
[340739373,1729763291524,-161.28355611,0.00069973,15]
[340739374,1729763291546,-500.0,0.00069973,5]
[340739375,1729763291569,-921.0,0.0006998,60]
[340739376,1729763291591,-152.23415255,0.0006998,7]
[340739377,1729763291613,-9214.04374272,0.0006998,17]
[340739378,1729763291636,-524.77,0.00069988,120]
[340739379,1729763291657,-500.0,0.00069988,120]
[340739380,1729763291678,-500.0,0.00069988,120]
[340739381,1729763291700,-530.86,0.00069988,120]
[340739382,1729763291723,-500.0,0.00069988,120]
[340739383,1729763291746,-4607.02187136,0.00069988,17]
[340739384,1729763291769,-32249.1530995,0.00069989,17]
[340739385,1729763291793,-50677.240585,0.0006999,17]
[340739386,1729763291816,-659.70062981,0.0006999,14]
[340739387,1729763291838,-160.170086,0.0006999,120]
[340739388,1729763291859,-154.402258,0.0006999,120]
[340739389,1729763291881,-151.0,0.0006999,7]
[340739390,1729763291903,-151.0,0.0006999,120]
[340739391,1729763291926,-210.929477,0.0006999,120]
[340739392,1729763291951,-46070.2187136,0.0006999,17]
[340739393,1729763291975,-9235.80881734,0.0006999,14]
[340739394,1729763291998,-164.769028,0.0006999,120]
[340739395,1729763292019,-261.914955,0.0006999,120]
[340739396,1729763292048,-182.131978,0.0006999,120]
[340739397,1729763292072,-151.0,0.0006999,120]
[340739398,1729763292093,-182.131978,0.0006999,120]
[340739399,1729763292114,-151.0,0.0006999,120]
[340739400,1729763292136,-151.0,0.0006999,120]
[340739401,1729763292158,-151.0,0.0006999,120]
[340739402,1729763292180,-151.0,0.0006999,30]
[340739403,1729763292202,-496.55090085,0.00069998,120]
[340739404,1729763292224,-504.99691165,0.00069998,120]
[340739405,1729763292246,-497.01807829,0.00069998,120]
[340739406,1729763292269,-1356.29,0.00069998,120]
[340739407,1729763292293,-1248.23,0.00069998,120]
[340739408,1729763292313,-459.94099184,0.00069998,120]
[340739409,1729763292338,-2709.25,0.00069998,120]
[340739410,1729763292360,-623.58,0.00069998,120]
[340739411,1729763292381,-500.0,0.00069998,120]
[340739412,1729763292404,-2427.11,0.00069998,120]
[340739413,1729763292427,-500.0,0.00069998,120]
[340739414,1729763292450,-500.0,0.00069998,120]
[340739415,1729763292474,-500.0,0.00069998,120]
[340739416,1729763292495,-373.77108618,0.00069999,31]
[340739417,1729763292517,-373.77108618,0.00069999,31]
[340739418,1729763292539,-1000.0,0.00069999,120]
[340739419,1729763292564,-151.0,0.00069999,7]
[340739420,1729763292585,-151.0,0.00069999,120]
[340739421,1729763292608,-500.0,0.00069999,14]
[340739422,1729763292631,-500.0,0.00069999,120]
[340739423,1729763292653,-500.0,0.00069999,120]
[340739424,1729763292674,-500.0,0.00069999,120]
[340739425,1729763292696,-500.0,0.00069999,120]
[340739426,1729763292719,-500.0,0.00069999,120]
[340739427,1729763292741,-500.0,0.00069999,120]
[340739428,1729763292765,-500.0,0.00069999,120]
[340739429,1729763292787,-500.0,0.00069999,120]
[340739430,1729763292809,-500.0,0.00069999,120]
[340739431,1729763292831,-411.99223489,0.00069999,120]
[340739432,1729763292853,-500.0,0.00069999,120]
[340739433,1729763292874,-500.0,0.00069999,120]
[340739434,1729763292895,-500.0,0.00069999,120]
[340739435,1729763292916,-500.0,0.00069999,120]
[340739436,1729763292938,-500.0,0.00069999,120]
[340739437,1729763292961,-315.94871234,0.00069999,120]
[340739438,1729763292985,-699.77,0.00069999,120]
[340739439,1729763293006,-699.77,0.00069999,120]
[340739440,1729763293029,-699.77,0.00069999,120]
[340739441,1729763293050,-699.77,0.00069999,120]
[340739442,1729763293072,-699.77,0.00069999,120]
[340739443,1729763293095,-699.77,0.00069999,120]
[340739444,1729763293116,-699.77,0.00069999,120]
[340739445,1729763293137,-699.77,0.00069999,120]
[340739446,1729763293159,-699.77,0.00069999,120]
[340739447,1729763293181,-699.77,0.00069999,120]
[340739448,1729763293203,-699.77,0.00069999,120]
[340739449,1729763293226,-699.77,0.00069999,120]
[340739450,1729763293247,-699.77,0.00069999,120]
[340739451,1729763293270,-1356.29,0.00069999,120]
[340739452,1729763293292,-1356.29,0.00069999,120]
[340739453,1729763293314,-1356.29,0.00069999,120]
[340739454,1729763293336,-1356.29,0.00069999,120]
[340739455,1729763293358,-1356.29,0.00069999,120]
[340739456,1729763293381,-1356.29,0.00069999,120]
[340739457,1729763293403,-1356.29,0.00069999,120]
[340739458,1729763293424,-1356.29,0.00069999,120]
[340739459,1729763293446,-1356.29,0.00069999,120]
[340739460,1729763293470,-1356.29,0.00069999,120]
[340739461,1729763293493,-1356.29,0.00069999,120]
[340739462,1729763293516,-1356.29,0.00069999,120]
[340739463,1729763293537,-500.0,0.00069999,120]
[340739464,1729763293562,-500.0,0.00069999,120]
[340739465,1729763293583,-507.55533428,0.00069999,120]
[340739466,1729763293606,-500.0,0.00069999,120]
[340739467,1729763293629,-500.0,0.00069999,120]
[340739468,1729763293650,-500.0,0.00069999,120]
[340739469,1729763293672,-500.0,0.00069999,120]
[340739470,1729763293694,-500.0,0.00069999,120]
[340739471,1729763293719,-500.0,0.00069999,120]
[340739472,1729763293740,-500.0,0.00069999,120]
[340739473,1729763293763,-500.0,0.00069999,120]
[340739474,1729763293784,-500.0,0.00069999,120]
[340739475,1729763293806,-500.0,0.00069999,120]
[340739476,1729763293828,-500.0,0.00069999,120]
[340739477,1729763293849,-500.0,0.00069999,120]
[340739478,1729763293870,-500.0,0.00069999,120]
[340739479,1729763293893,-1248.23,0.00069999,120]
[340739480,1729763293914,-1248.23,0.00069999,120]
[340739481,1729763293936,-1248.23,0.00069999,120]
[340739482,1729763293958,-1248.23,0.00069999,120]
[340739483,1729763293985,-1248.23,0.00069999,120]
[340739484,1729763294008,-1248.23,0.00069999,120]
[340739485,1729763294033,-1248.23,0.00069999,120]
[340739486,1729763294059,-1248.23,0.00069999,120]
[340739487,1729763294080,-1248.23,0.00069999,120]
[340739488,1729763294102,-1248.23,0.00069999,120]
[340739489,1729763294124,-1248.23,0.00069999,120]
[340739490,1729763294146,-1248.23,0.00069999,120]
[340739491,1729763294169,-182.131978,0.00069999,120]
[340739492,1729763294192,-182.131978,0.00069999,120]
[340739493,1729763294216,-151.0,0.00069999,120]
[340739494,1729763294239,-2709.25,0.00069999,120]
[340739495,1729763294263,-2709.25,0.00069999,120]
[340739496,1729763294286,-2709.25,0.00069999,120]
[340739497,1729763294308,-2709.25,0.00069999,120]
[340739498,1729763294332,-2709.25,0.00069999,120]
[340739499,1729763294354,-2709.25,0.00069999,120]
[340739500,1729763294376,-2709.25,0.00069999,120]
[340739501,1729763294400,-2709.25,0.00069999,120]
[340739502,1729763294422,-2709.25,0.00069999,120]
[340739503,1729763294445,-2709.25,0.00069999,120]
[340739504,1729763294467,-151.0,0.00069999,120]
[340739505,1729763294489,-2709.25,0.00069999,120]
[340739506,1729763294512,-2709.25,0.00069999,120]
[340739507,1729763294533,-623.58,0.00069999,120]
[340739508,1729763294556,-623.58,0.00069999,120]
[340739509,1729763294675,-623.58,0.00069999,120]
[340739510,1729763294700,-623.58,0.00069999,120]
[340739511,1729763294725,-623.58,0.00069999,120]
[340739512,1729763294748,-623.58,0.00069999,120]
[340739513,1729763294770,-623.58,0.00069999,120]
[340739514,1729763294792,-623.58,0.00069999,120]
[340739515,1729763294815,-500.0,0.00069999,120]
[340739516,1729763294837,-623.58,0.00069999,120]
[340739517,1729763294860,-474.7066,0.00069999,120]
[340739518,1729763294884,-623.58,0.00069999,120]
[340739519,1729763294907,-623.58,0.00069999,120]
[340739520,1729763294929,-623.58,0.00069999,120]
[340739521,1729763294951,-500.0,0.00069999,120]
[340739522,1729763294974,-446.27880885,0.00069999,120]
[340739523,1729763294996,-516.29193247,0.00069999,120]
[340739524,1729763295018,-2427.11,0.00069999,120]
[340739525,1729763295041,-2427.11,0.00069999,120]
[340739526,1729763295064,-2427.11,0.00069999,120]
[340739527,1729763295086,-2427.11,0.00069999,120]
[340739528,1729763295109,-2427.11,0.00069999,120]
[340739529,1729763295132,-2427.11,0.00069999,120]
[340739530,1729763295154,-2427.11,0.00069999,120]
[340739531,1729763295176,-2427.11,0.00069999,120]
[340739532,1729763295198,-2427.11,0.00069999,120]
[340739533,1729763295221,-2427.11,0.00069999,120]
[340739534,1729763295243,-2427.11,0.00069999,120]
[340739535,1729763295266,-2427.11,0.00069999,120]
[340739536,1729763295290,-500.0,0.00069999,120]
[340739537,1729763295314,-500.0,0.00069999,120]
[340739538,1729763295337,-500.0,0.00069999,120]
[340739539,1729763295359,-607.13881977,0.00069999,120]
[340739540,1729763295381,-500.0,0.00069999,120]
[340739541,1729763295404,-542.12,0.00069999,120]
[340739542,1729763295427,-175.39642,0.00069999,120]
[340739543,1729763295450,-530.86,0.00069999,120]
[340739544,1729763295474,-530.86,0.00069999,120]
[340739545,1729763295496,-530.86,0.00069999,120]
[340739546,1729763295519,-530.86,0.00069999,120]
[340739547,1729763295541,-530.86,0.00069999,120]
[340739548,1729763295566,-530.86,0.00069999,120]
[340739549,1729763295587,-530.86,0.00069999,120]
[340739550,1729763295610,-530.86,0.00069999,120]
[340739551,1729763295634,-530.86,0.00069999,120]
[340739552,1729763295656,-530.86,0.00069999,120]
[340739553,1729763295678,-530.86,0.00069999,120]
[340739554,1729763295699,-530.86,0.00069999,120]
[340739555,1729763295721,-530.86,0.00069999,120]
[340739556,1729763295743,-500.0,0.00069999,120]
[340739557,1729763295765,-500.0,0.00069999,120]
[340739558,1729763295787,-500.0,0.00069999,120]
[340739559,1729763295808,-500.0,0.00069999,120]
[340739560,1729763295831,-255.96074992,0.00069999,120]
[340739561,1729763295856,-50000.0,0.0007,61]
[340739562,1729763295882,-50000.0,0.0007,70]
[340739563,1729763295906,-50000.0,0.0007,50]
[340739564,1729763295929,-183428.91922948,0.0007,120]
[340739565,1729763295952,-19089.06817576,0.0007,120]
[340739566,1729763295976,-500000.0,0.0007,120]
[340739567,1729763296000,-500000.0,0.0007,120]
[340739568,1729763296023,-500000.0,0.0007,120]
[340739569,1729763296045,-151.0,0.0007,7]
[340739570,1729763296067,-151.0,0.0007,120]
[340739571,1729763296089,-220.821344,0.0007,120]
[340739572,1729763296112,-10000.0,0.0007,60]
[340739573,1729763296133,-300.0,0.0007,120]
[340739574,1729763296156,-182.131978,0.0007,120]
[340739575,1729763296179,-182.131978,0.0007,120]
[340739576,1729763296201,-182.131978,0.0007,120]
[340739577,1729763296224,-182.131978,0.0007,120]
[340739578,1729763296248,-182.131978,0.0007,120]
[340739579,1729763296271,-182.131978,0.0007,120]
[340739580,1729763296293,-182.131978,0.0007,120]
[340739581,1729763296315,-182.131978,0.0007,120]
[340739582,1729763296336,-182.131978,0.0007,120]
[340739583,1729763296358,-182.131978,0.0007,120]
[340739584,1729763296380,-182.131978,0.0007,120]
[340739585,1729763296402,-182.131978,0.0007,120]
[340739586,1729763296424,-182.131978,0.0007,120]
[340739587,1729763296445,-182.131978,0.0007,120]
[340739588,1729763296468,-151.0,0.0007,120]
[340739589,1729763296490,-277.405276,0.0007,120]
[340739590,1729763296512,-2279.0,0.0007,14]
[340739591,1729763296533,-419.0,0.0007,120]
[340739592,1729763296559,-465117.56723788,0.0007,120]
[340739593,1729763296915,-150.0,0.00069899,54]
[340739594,1729763296956,-48.06354114,0.00069899,54]
[340739595,1729763296981,-101.93645886,0.00069932,17]
[340739596,1729763297012,-150.0,0.00069932,17]
[340739597,1729763297044,-150.0,0.00069932,17]
[340739598,1729763297169,-150.0,0.00069932,17]
[340739599,1729763297198,-150.0,0.00068599,120]
[340739600,1729763297229,-150.0,0.00068599,120]
[340739601,1729763297257,-150.0,0.00068599,120]
[340739602,1729763297286,-150.0,0.00068599,120]
[340739603,1729763297310,-150.0,0.00068599,120]
[340739604,1729763297335,-150.0,0.00068599,120]
[340739605,1729763297363,-150.0,0.00068599,120]
[340739606,1729763297388,-0.7279268,0.00068599,120]
[340739607,1729763297409,-149.2720732,0.000699,54]
[340739608,1729763297433,-48.79146792,0.000699,54]
[340739609,1729763297454,-101.20853208,0.00069932,17]
[340739610,1729763297480,-150.0,0.00069932,17]
[340739611,1729763297505,-150.0,0.00069932,17]
[340739612,1729763297542,-150.0,0.00069932,17]
[340739613,1729763297581,-150.0,0.00069932,17]
[340739614,1729763297608,-150.0,0.00069932,17]
[340739615,1729763297647,-150.0,0.00069932,17]
[340739616,1729763297683,-150.0,0.00069932,17]
[340739617,1729763297711,-150.0,0.00069932,17]
[340739618,1729763297853,-150.0,0.00069932,17]
[340739619,1729763297899,-150.0,0.00069932,17]
[340739620,1729763297938,-150.0,0.00069932,17]
[340739621,1729763297963,-150.0,0.00069932,17]
[340739622,1729763297990,-150.0,0.00069932,17]
[340739623,1729763298033,-150.0,0.00068493,120]
[340739624,1729763298135,-287.89432666,0.00068493,120]
[340739627,1729763392391,150.0,0.00015342,2]
[340739628,1729763392412,11.04,0.00015342,2]
[340739639,1729763431756,-482.04687598,0.00042306,2]
[340739640,1729763431820,-9887.95312402,0.00042306,2]
[340739641,1729763431830,-183.0,0.000576,12]
[340739642,1729763431840,-5930.06383019,0.00064823,120]
[340739643,1729763431851,-4069.93616981,0.00064823,120]
[340739644,1729763431861,-9720.65864198,0.00064823,100]
[340739645,1729763431873,-279.34135802,0.00064823,100]
[340739646,1729763431883,-1649.65864198,0.00064823,80]
[340739647,1729763431906,-37.95008837,0.00064823,80]
[340739648,1729763431917,-707.07731665,0.00064823,80]
[340739649,1729763431929,-629.99914214,0.00064823,80]
[340739650,1729763431950,-393.9067626,0.00064823,80]
[340739651,1729763432012,-371.6925449,0.00064823,80]
[340739658,1729763437741,-1046.66797986,0.00064823,80]
[340739659,1729763437907,-5163.0475235,0.00064823,80]
[340739660,1729763437917,-10000.0,0.00064823,60]
[340739661,1729763437926,-10000.0,0.00064823,40]
[340739662,1729763437936,-10000.0,0.00064823,20]
[340739663,1729763437945,-10037.78110745,0.00064823,10]
[340739664,1729763437955,-150.0,0.00066594,120]
[340739665,1729763437964,-1351.965,0.00066594,120]
[340739666,1729763437973,-733.9637,0.00066675,2]
[340739667,1729763437983,-1032.70987408,0.00067123,120]
[340739668,1729763437992,-1009.64995671,0.00067123,120]
[340739669,1729763438002,-799.56,0.00067192,2]
[340739670,1729763438012,-152.86,0.00067756,120]
[340739671,1729763438021,-250.0,0.00067761,120]
[340739672,1729763438030,-62.10567334,0.00068493,120]
[340739673,1729763438040,-1000.0,0.00068788,30]
[340739674,1729763438050,-7703.83271241,0.00068841,15]
[340739675,1729763438059,-86559.2143,0.00068852,2]